[Event "EYCC 2017"]
[Site "Mamaia"]
[Date "2017.09.07"]
[Round "3"]
[White "Mironenko, Galina"]
[Black "Zavivaeva, Emilia"]
[Result "1-0"]
[ECO "E01"]
[WhiteElo "2035"]
[BlackElo "1582"]
[Annotator "NA"]
[PlyCount "109"]
[EventDate "2017.??.??"]
[EventType "swiss"]
[EventCountry "ROU"]
[SourceTitle "playchess.com"]
[Source "ChessBase"]
[SourceQuality "1"]
[TimeControl "40/5400+30:1800+30"]

1. g3 {[%emt 0:00:00]} Nf6 {[%emt 0:00:20]} 2. Bg2 {[%emt 0:00:00]} e6 {[%emt 0:00:31]} 3. c4 {[%emt 0:00:17]} d5 {[%emt 0:02:11]} 4. d4 {[%emt 0:03:23]} dxc4 {[%emt 0:01:47]} 5. Qa4+ {[%emt 0:03:42]} Bd7 {[%emt 0:02:47]} 6. Qxc4 {[%emt 0:00:27]} Bc6 {[%emt 0:00:26]} 7. Nf3 {[%emt 0:04:41]} Bd5 {[%emt 0:03:27]} 8. Qa4+ {[%emt 0:09:42]} Nc6 {[%emt 0:01:00]} 9. O-O {[%emt 0:04:57]} Bd6 {[%emt 0:03:44]} 10. Nc3 {[%emt 0:01:45]} O-O {[%emt 0:07:06]} 11. Bg5 {[%emt 0:02:37]} h6 {[%emt 0:03:11]} 12. Bxf6 {[%emt 0:01:56]} Qxf6 {[%emt 0:01:36]} 13. e4 {[%emt 0:00:24]} b5 {[%emt 0:25:51]} 14. Qxb5 {[%emt 0:02:37]} Rab8 {[%emt 0:00:07]} 15. Qe2 {[%emt 0:01:14]} Nxd4 {[%emt 0:04:09]} 16. Nxd4 {[%emt 0:00:35]} Qxd4 {[%emt 0:02:09]} 17. exd5 {[%emt 0:00:14]} exd5 {[%emt 0:00:30]} 18. Bxd5 {[%emt 0:09:46]} Bb4 {[%emt 0:03:51]} 19. Rad1 {[%emt 0:05:12]} Qf6 {[%emt 0:00:48]} 20. Qf3 {[%emt 0:01:58]} Qg6 {[%emt 0:07:09]} 21. Qe4 {[%emt 0:02:07]} Qf6 {[%emt 0:01:13]} 22. Qd4 {[%emt 0:01:38]} Bxc3 {[%emt 0:01:06]} 23. bxc3 {[%emt 0:01:25]} Qg6 {[%emt 0:00:54]} 24. Qxa7 {[%emt 0:01:06]} c6 {[%emt 0:00:21]} 25. Bb3 {[%emt 0:00:39]} Rb5 {[%emt 0:01:16]} 26. Qe3 {[%emt 0:01:51]} Rh5 {[%emt 0:01:54]} 27. Qf3 {[%emt 0:00:54]} Rf5 {[%emt 0:02:03]} 28. Qe4 {[%emt 0:02:05]} Qf6 {[%emt 0:02:33]} 29. Bc2 {[%emt 0:00:41]} g6 {[%emt 0:00:10]} 30. Qd4 {[%emt 0:00:19]} Qxd4 {[%emt 0:00:43]} 31. Rxd4 {[%emt 0:00:47]} Rc5 {[%emt 0:00:48]} 32. c4 {[%emt 0:00:14]} Ra5 {[%emt 0:00:10]} 33. Bb3 {[%emt 0:00:12]} Rf5 {[%emt 0:00:35]} 34. Rfd1 {[%emt 0:00:12]} h5 {[%emt 0:00:31]} 35. Rd8 {[%emt 0:00:13]} h4 {[%emt 0:00:36]} 36. Kg2 {[%emt 0:00:19]} h3+ {[%emt 0:00:17]} 37. Kf1 {[%emt 0:00:53]} Rf3 {[%emt 0:00:47]} 38. Ke2 {[%emt 0:01:13]} Rf5 {[%emt 0:00:24]} 39. f4 {[%emt 0:00:29]} g5 {[%emt 0:00:42]} 40. Kf3 {[%emt 0:00:00]} gxf4 {[%emt 0:02:03]} 41. gxf4 {[%emt 0:00:37]} Rxd8 {[%emt 0:00:31]} 42. Rxd8+ {[%emt 0:00:11]} Kg7 {[%emt 0:00:23]} 43. Rd6 {[%emt 0:00:13]} c5 {[%emt 0:01:48]} 44. Rd5 {[%emt 0:00:11]} Rf6 {[%emt 0:00:08]} 45. Rxc5 {[%emt 0:00:08]} Rd6 {[%emt 0:00:49]} 46. Rd5 {[%emt 0:00:09]} Re6 {[%emt 0:02:05]} 47. c5 {[%emt 0:02:06]} Re1 {[%emt 0:00:20]} 48. Rd1 {[%emt 0:00:08]} Re8 {[%emt 0:00:52]} 49. c6 {[%emt 0:00:41]} Kf6 {[%emt 0:00:22]} 50. Rd7 {[%emt 0:00:27]} Rc8 {[%emt 0:00:49]} 51. c7 {[%emt 0:00:18]} Kf5 {[%emt 0:00:15]} 52. Bc4 {[%emt 0:00:20]} f6 {[%emt 0:00:16]} 53. Ba6 {[%emt 0:00:19]} Ke6 {[%emt 0:00:19]} 54. Bxc8 {[%emt 0:00:08]} Kf5 {[%emt 0:00:21]} 55. Rg7# {[%emt 0:00:07]} 1-0

[Event "EYCC 2017"]
[Site "Mamaia"]
[Date "2017.09.07"]
[Round "3"]
[White "Rogozenco, Teodora"]
[Black "Rozman, Monika"]
[Result "1-0"]
[ECO "D85"]
[WhiteElo "2024"]
[BlackElo "2194"]
[Annotator "NA"]
[PlyCount "107"]
[EventDate "2017.??.??"]
[EventType "swiss"]
[EventCountry "ROU"]
[SourceTitle "playchess.com"]
[Source "ChessBase"]
[SourceQuality "1"]
[TimeControl "40/5400+30:1800+30"]

1. d4 {[%emt 0:00:00]} Nf6 {[%emt 0:00:06]} 2. c4 {[%emt 0:00:00]} g6 {[%emt 0:00:04]} 3. Nc3 {[%emt 0:00:00]} d5 {[%emt 0:00:32]} 4. Nf3 {[%emt 0:00:00]} Bg7 {[%emt 0:00:19]} 5. cxd5 {[%emt 0:01:00]} Nxd5 {[%emt 0:00:23]} 6. e4 {[%emt 0:00:07]} Nxc3 {[%emt 0:00:45]} 7. bxc3 {[%emt 0:00:05]} c5 {[%emt 0:00:46]} 8. Rb1 {[%emt 0:00:06]} O-O {[%emt 0:01:00]} 9. Be2 {[%emt 0:00:04]} Nc6 {[%emt 0:02:57]} 10. d5 {[%emt 0:01:19]} Bxc3+ {[%emt 0:07:56]} 11. Bd2 {[%emt 0:00:21]} Bxd2+ {[%emt 0:00:14]} 12. Qxd2 {[%emt 0:00:27]} Nd4 {[%emt 0:00:42]} 13. Nxd4 {[%emt 0:01:08]} cxd4 {[%emt 0:00:05]} 14. Qxd4 {[%emt 0:00:08]} Qa5+ {[%emt 0:01:16]} 15. Qd2 {[%emt 0:16:57]} Qxd2+ {[%emt 0:02:20]} 16. Kxd2 {[%emt 0:00:07]} Rd8 {[%emt 0:00:06]} 17. Ke3 {[%emt 0:03:17]} b6 {[%emt 0:04:51]} 18. Rbc1 {[%emt 0:05:56]} Kf8 {[%emt 0:15:53]} 19. Rc7 {[%emt 0:05:20]} Bd7 {[%emt 0:18:56]} 20. Ba6 {[%emt 0:08:56]} Bc8 {[%emt 0:02:14]} 21. Bb5 {[%emt 0:00:25]} a6 {[%emt 0:00:20]} 22. Bc6 {[%emt 0:00:20]} Rb8 {[%emt 0:00:09]} 23. Kf4 {[%emt 0:02:26]} h6 {[%emt 0:01:58]} 24. h4 {[%emt 0:13:38]} b5 {[%emt 0:03:19]} 25. Ra7 {[%emt 0:03:38]} f6 {[%emt 0:05:18]} 26. g4 {[%emt 0:01:54]} Rd6 {[%emt 0:04:20]} 27. f3 {[%emt 0:03:15]} h5 {[%emt 0:19:08]} 28. Re1 {[%emt 0:05:05]} b4 {[%emt 0:05:23]} 29. e5 {[%emt 0:04:18]} fxe5+ {[%emt 0:00:13]} 30. Rxe5 {[%emt 0:00:05]} b3 {[%emt 0:02:15]} 31. axb3 {[%emt 0:03:11]} e6 {[%emt 0:00:36]} 32. gxh5 {[%emt 0:01:53]} gxh5 {[%emt 0:01:09]} 33. Rxh5 {[%emt 0:00:30]} Kg8 {[%emt 0:00:02]} 34. Ke5 {[%emt 0:06:59]} Rxd5+ {[%emt 0:01:18]} 35. Bxd5 {[%emt 0:00:06]} exd5 {[%emt 0:00:09]} 36. Rg5+ {[%emt 0:00:35]} Kh8 {[%emt 0:00:07]} 37. Rgg7 {[%emt 0:06:07]} Rxb3 {[%emt 0:00:56]} 38. Rge7 {[%emt 0:04:18]} Re3+ {[%emt 0:00:48]} 39. Kd4 {[%emt 0:03:26]} Re6 {[%emt 0:00:31]} 40. Rh7+ {[%emt 0:00:00]} Kg8 {[%emt 0:00:04]} 41. Rhc7 {[%emt 0:07:19]} Re8 {[%emt 0:01:32]} 42. Ra8 {[%emt 0:01:52]} Bd7 {[%emt 0:00:17]} 43. Rxe8+ {[%emt 0:00:34]} Bxe8 {[%emt 0:00:06]} 44. Kxd5 {[%emt 0:00:02]} Bh5 {[%emt 0:01:21]} 45. f4 {[%emt 0:00:09]} Bd1 {[%emt 0:00:17]} 46. Ra7 {[%emt 0:00:09]} Be2 {[%emt 0:00:15]} 47. Ke5 {[%emt 0:00:07]} Bd3 {[%emt 0:01:29]} 48. Kf6 {[%emt 0:00:04]} Bb5 {[%emt 0:00:49]} 49. f5 {[%emt 0:00:36]} Bc4 {[%emt 0:01:14]} 50. h5 {[%emt 0:00:34]} a5 {[%emt 0:01:41]} 51. h6 {[%emt 0:00:54]} Kh8 {[%emt 0:01:09]} 52. Kg6 {[%emt 0:00:10]} a4 {[%emt 0:00:35]} 53. Ra8+ {[%emt 0:00:29]} Bg8 {[%emt 0:00:09]} 54. h7 {[%emt 0:00:04]} 1-0

[Event "EYCC 2017"]
[Site "Mamaia"]
[Date "2017.09.07"]
[Round "3"]
[White "Bulatova, Kamaliya"]
[Black "Sosnina, Ekaterina"]
[Result "1-0"]
[ECO "A53"]
[WhiteElo "2014"]
[BlackElo "1775"]
[Annotator "NA"]
[PlyCount "63"]
[EventDate "2017.??.??"]
[EventType "swiss"]
[EventCountry "ROU"]
[SourceTitle "playchess.com"]
[Source "ChessBase"]
[SourceQuality "1"]
[TimeControl "40/5400+30:1800+30"]

1. d4 {[%emt 0:00:00]} Nf6 {[%emt 0:00:04]} 2. c4 {[%emt 0:00:00]} d6 {[%emt 0:00:08]} 3. Nc3 {[%emt 0:00:00]} e5 {[%emt 0:00:07]} 4. d5 {[%emt 0:00:00]} Be7 {[%emt 0:00:11]} 5. e4 {[%emt 0:00:00]} O-O {[%emt 0:00:09]} 6. Nf3 {[%emt 0:00:01]} Bg4 {[%emt 0:00:22]} 7. h3 {[%emt 0:00:06]} Bxf3 {[%emt 0:00:12]} 8. Qxf3 {[%emt 0:00:05]} Nfd7 {[%emt 0:00:58]} 9. h4 $16 {[%emt 0:00:38]} a5 {[%emt 0:35:27]} 10. Bd3 {[%emt 0:13:18]} Nc5 {[%emt 0:02:38]} 11. Bc2 {[%emt 0:00:57]} Nbd7 {[%emt 0:01:24]} 12. Be3 {[%emt 0:02:36]} c6 {[%emt 0:18:03]} 13. g4 {[%emt 0:15:17]} Qb6 {[%emt 0:11:37]} 14. O-O-O {[%emt 0:04:52]} a4 {[%emt 0:00:55]} 15. g5 {[%emt 0:06:40]} Qb4 {[%emt 0:03:22]} 16. a3 {[%emt 0:09:12]} Qxc4 {[%emt 0:01:17]} 17. h5 {[%emt 0:00:05]} b5 {[%emt 0:14:52]} 18. dxc6 {[%emt 0:03:11]} b4 {[%emt 0:04:01]} 19. Qe2 {[%emt 0:12:37]} Nb3+ {[%emt 0:02:14]} 20. Bxb3 {[%emt 0:07:27]} Qxb3 {[%emt 0:00:08]} 21. Nd5 {[%emt 0:00:02]} bxa3 {[%emt 0:02:03]} 22. Nxe7+ {[%emt 0:00:48]} Kh8 {[%emt 0:00:05]} 23. Kb1 {[%emt 0:02:56]} Rfb8 {[%emt 0:01:01]} 24. cxd7 {[%emt 0:06:29]} axb2 {[%emt 0:00:20]} 25. Nc8 {[%emt 0:00:27]} Rxc8 {[%emt 0:00:22]} 26. dxc8=Q+ {[%emt 0:00:05]} Rxc8 {[%emt 0:00:07]} 27. Qxb2 {[%emt 0:00:12]} Qc4 {[%emt 0:00:25]} 28. Rc1 {[%emt 0:01:52]} Qxe4+ 29. Ka1 Ra8 {[%emt 0:00:33]} 30. Qc2 {[%emt 0:00:28]} Qb7 {[%emt 0:00:16]} 31. Qc7 {[%emt 0:00:23]} Qa6 {[%emt 0:01:51]} 32. Rc6 {[%emt 0:00:15]} 1-0

[Event "EYCC 2017"]
[Site "Mamaia"]
[Date "2017.09.07"]
[Round "3"]
[White "Srdanovic, Jovana"]
[Black "Dejanovic, Tereza"]
[Result "1-0"]
[ECO "D00"]
[WhiteElo "1994"]
[BlackElo "1808"]
[Annotator "NA"]
[PlyCount "101"]
[EventDate "2017.??.??"]
[EventType "swiss"]
[EventCountry "ROU"]
[SourceTitle "playchess.com"]
[Source "ChessBase"]
[SourceQuality "1"]
[TimeControl "40/5400+30:1800+30"]

1. d4 {[%emt 0:00:00]} d5 {[%emt 0:00:06]} 2. Bf4 {[%emt 0:00:00]} e6 {[%emt 0:00:11]} 3. e3 {[%emt 0:00:02]} Bd6 {[%emt 0:00:49]} 4. Bg3 {[%emt 0:00:12]} Nf6 {[%emt 0:00:44]} 5. Nd2 {[%emt 0:00:20]} O-O {[%emt 0:01:35]} 6. Ngf3 {[%emt 0:00:45]} c5 {[%emt 0:00:45]} 7. c3 {[%emt 0:00:12]} Nc6 {[%emt 0:01:58]} 8. Bd3 {[%emt 0:00:11]} b6 {[%emt 0:02:32]} 9. e4 {[%emt 0:01:54]} dxe4 {[%emt 0:07:33]} 10. Nxe4 {[%emt 0:00:22]} Be7 {[%emt 0:04:26]} 11. dxc5 {[%emt 0:01:40]} bxc5 {[%emt 0:01:30]} 12. Nxf6+ {[%emt 0:03:20]} Bxf6 {[%emt 0:00:16]} 13. Be4 {[%emt 0:00:58]} Qb6 {[%emt 0:02:42]} 14. Qc2 {[%emt 0:03:13]} h6 {[%emt 0:02:56]} 15. O-O {[%emt 0:01:24]} Bb7 {[%emt 0:01:38]} 16. Rfd1 {[%emt 0:01:40]} Rfd8 {[%emt 0:01:50]} 17. Bf4 {[%emt 0:04:44]} Ne7 {[%emt 0:09:07]} 18. Bxb7 {[%emt 0:06:46]} Qxb7 {[%emt 0:00:09]} 19. Qb3 {[%emt 0:00:12]} Qc6 {[%emt 0:04:54]} 20. Qc4 {[%emt 0:04:33]} Rd5 {[%emt 0:06:58]} 21. Rd2 {[%emt 0:03:09]} Rad8 {[%emt 0:07:54]} 22. Rad1 {[%emt 0:03:14]} Qb6 {[%emt 0:02:18]} 23. Qb3 {[%emt 0:04:40]} R8d7 {[%emt 0:11:27]} 24. Qc2 {[%emt 0:11:19]} Qa5 {[%emt 0:07:45]} 25. Qb3 {[%emt 0:05:26]} Qb6 {[%emt 0:02:58]} 26. Qa3 {[%emt 0:01:30]} Rxd2 {[%emt 0:04:55]} 27. Rxd2 {[%emt 0:00:29]} Rxd2 {[%emt 0:01:26]} 28. Nxd2 {[%emt 0:00:19]} Qb5 {[%emt 0:02:01]} 29. Ne4 {[%emt 0:03:48]} Qe2 {[%emt 0:04:28]} 30. Ng3 {[%emt 0:02:15]} Qd1+ {[%emt 0:07:03]} 31. Nf1 {[%emt 0:00:06]} Qc2 {[%emt 0:00:20]} 32. Bb8 {[%emt 0:04:16]} Nc6 {[%emt 0:00:39]} 33. Bg3 {[%emt 0:00:53]} Ne5 {[%emt 0:00:36]} 34. Bxe5 {[%emt 0:00:27]} Bxe5 {[%emt 0:00:03]} 35. Qxc5 {[%emt 0:00:19]} Bf6 {[%emt 0:00:21]} 36. Qb4 {[%emt 0:00:55]} Qc1 {[%emt 0:00:43]} 37. g3 {[%emt 0:00:17]} Qb1 {[%emt 0:00:39]} 38. a4 {[%emt 0:00:11]} Qc1 {[%emt 0:00:42]} 39. a5 {[%emt 0:00:39]} Kh7 {[%emt 0:00:32]} 40. a6 {[%emt 0:00:00]} Bd8 {[%emt 0:00:14]} 41. Qe4+ {[%emt 0:00:29]} f5 {[%emt 0:06:27]} 42. Qxe6 {[%emt 0:00:27]} Qb1 {[%emt 0:00:07]} 43. Kg2 {[%emt 0:01:08]} Bb6 {[%emt 0:00:51]} 44. b4 {[%emt 0:00:53]} Qc2 {[%emt 0:02:00]} 45. Ne3 {[%emt 0:00:10]} Qxc3 {[%emt 0:01:13]} 46. Qxf5+ {[%emt 0:00:11]} Kg8 {[%emt 0:00:49]} 47. Qe6+ {[%emt 0:00:15]} Kh8 {[%emt 0:00:56]} 48. Qe8+ {[%emt 0:00:09]} Kh7 {[%emt 0:00:07]} 49. Qe4+ {[%emt 0:00:04]} Kh8 {[%emt 0:01:24]} 50. Nd5 {[%emt 0:00:58]} Bd4 {[%emt 0:01:25]} 51. Nxc3 1-0

[Event "EYCC 2017"]
[Site "Mamaia"]
[Date "2017.09.07"]
[Round "3"]
[White "Kalinowska, Zuzanna"]
[Black "Afonasieva, Anna"]
[Result "0-1"]
[ECO "D30"]
[WhiteElo "1992"]
[BlackElo "2263"]
[Annotator "NA"]
[PlyCount "62"]
[EventDate "2017.??.??"]
[EventType "swiss"]
[EventCountry "ROU"]
[SourceTitle "playchess.com"]
[Source "ChessBase"]
[SourceQuality "1"]
[TimeControl "40/5400+30:1800+30"]

1. d4 {[%emt 0:00:00]} d5 {[%emt 0:00:05]} 2. Nf3 {[%emt 0:00:00]} Nf6 {[%emt 0:00:08]} 3. c4 {[%emt 0:00:00]} c6 {[%emt 0:00:04]} 4. e3 {[%emt 0:00:16]} e6 {[%emt 0:00:35]} 5. Nbd2 {[%emt 0:00:16]} c5 {[%emt 0:01:04]} 6. b3 {[%emt 0:03:07]} Nc6 {[%emt 0:04:03]} 7. Bb2 {[%emt 0:01:15]} Be7 {[%emt 0:08:58]} 8. Be2 {[%emt 0:04:02]} O-O {[%emt 0:00:59]} 9. O-O {[%emt 0:00:33]} cxd4 {[%emt 0:04:17]} 10. Nxd4 {[%emt 0:01:42]} Bd6 {[%emt 0:06:18]} 11. Nxc6 {[%emt 0:07:44]} bxc6 {[%emt 0:00:06]} 12. Nf3 {[%emt 0:00:25]} Qe7 {[%emt 0:04:53]} 13. cxd5 {[%emt 0:08:01]} exd5 {[%emt 0:02:44]} 14. Rc1 {[%emt 0:05:18]} Bd7 {[%emt 0:04:53]} 15. Ba6 {[%emt 0:03:56]} Rab8 {[%emt 0:03:55]} 16. Re1 {[%emt 0:03:30]} Rfd8 {[%emt 0:05:21]} 17. Nd2 {[%emt 0:11:19]} Ng4 {[%emt 0:16:51]} 18. Nf3 {[%emt 0:04:35]} c5 {[%emt 0:02:18]} 19. h3 {[%emt 0:03:02]} Nf6 {[%emt 0:00:48]} 20. Qc2 {[%emt 0:11:35]} Ne4 {[%emt 0:04:42]} 21. Bd3 {[%emt 0:01:58]} h6 {[%emt 0:06:36]} 22. Bxe4 {[%emt 0:02:45]} dxe4 {[%emt 0:00:52]} 23. Nd2 {[%emt 0:00:19]} Bf5 {[%emt 0:01:39]} 24. Nc4 {[%emt 0:01:28]} Rbc8 {[%emt 0:02:20]} 25. Red1 {[%emt 0:04:19]} Bc7 {[%emt 0:01:51]} 26. Qc3 {[%emt 0:02:02]} Qg5 {[%emt 0:01:28]} 27. Kh1 {[%emt 0:01:50]} f6 {[%emt 0:02:02]} 28. Na3 {[%emt 0:01:18]} Qh5 {[%emt 0:02:43]} 29. Qc4+ {[%emt 0:02:52]} Kh8 {[%emt 0:00:13]} 30. Rd5 {[%emt 0:01:34]} Rxd5 {[%emt 0:00:44]} 31. Qxd5 {[%emt 0:00:08]} Rd8 {[%emt 0:00:08]} 0-1

[Event "EYCC 2017"]
[Site "Mamaia"]
[Date "2017.09.07"]
[Round "3"]
[White "Lazavik, Denis"]
[Black "Murzin, Volodar"]
[Result "1-0"]
[ECO "D71"]
[WhiteElo "1989"]
[BlackElo "2280"]
[Annotator "NA"]
[PlyCount "145"]
[EventDate "2017.??.??"]
[EventType "swiss"]
[EventCountry "ROU"]
[SourceTitle "playchess.com"]
[Source "ChessBase"]
[SourceQuality "1"]
[TimeControl "40/5400+30:1800+30"]

1. d4 {[%emt 0:00:00]} Nf6 {[%emt 0:02:43]} 2. c4 {[%emt 0:00:12]} g6 {[%emt 0:00:05]} 3. g3 {[%emt 0:00:13]} c6 {[%emt 0:00:04]} 4. Bg2 {[%emt 0:00:38]} d5 {[%emt 0:00:05]} 5. cxd5 {[%emt 0:01:23]} cxd5 {[%emt 0:00:12]} 6. Nf3 {[%emt 0:00:21]} Bg7 {[%emt 0:00:05]} 7. Nc3 {[%emt 0:00:16]} O-O {[%emt 0:00:40]} 8. Ne5 {[%emt 0:00:24]} e6 {[%emt 0:00:17]} 9. O-O {[%emt 0:00:27]} Nfd7 {[%emt 0:06:02]} 10. Nf3 {[%emt 0:00:43]} Nf6 {[%emt 0:02:46]} 11. Ne5 {[%emt 0:02:19]} h6 {[%emt 0:08:55]} 12. Be3 {[%emt 0:04:12]} b6 {[%emt 0:17:37]} 13. Qd2 {[%emt 0:06:36]} Kh7 {[%emt 0:01:06]} 14. Rac1 {[%emt 0:03:05]} Bb7 {[%emt 0:20:04]} 15. f3 {[%emt 0:04:04]} Nfd7 {[%emt 0:06:42]} 16. f4 {[%emt 0:03:41]} a6 {[%emt 0:04:30]} 17. Bf2 {[%emt 0:03:38]} Nf6 {[%emt 0:06:19]} 18. Rfd1 {[%emt 0:03:30]} Nbd7 {[%emt 0:00:52]} 19. Na4 {[%emt 0:02:26]} Rb8 {[%emt 0:04:57]} 20. Qb4 {[%emt 0:01:55]} Ne4 {[%emt 0:02:38]} 21. Be3 {[%emt 0:08:23]} g5 {[%emt 0:01:21]} 22. b3 {[%emt 0:03:36]} f5 {[%emt 0:01:34]} 23. Nxd7 {[%emt 0:01:42]} Qxd7 {[%emt 0:00:11]} 24. Qxb6 {[%emt 0:01:39]} Ba8 {[%emt 0:01:02]} 25. Qxa6 {[%emt 0:00:35]} Qf7 {[%emt 0:00:47]} 26. Nc5 {[%emt 0:01:38]} Nxc5 {[%emt 0:00:05]} 27. Rxc5 {[%emt 0:00:21]} Rfd8 {[%emt 0:01:00]} 28. Qd3 {[%emt 0:00:33]} Bf8 {[%emt 0:00:25]} 29. Rc2 {[%emt 0:00:16]} Kg6 {[%emt 0:00:26]} 30. Rdc1 {[%emt 0:00:39]} Bd6 {[%emt 0:00:08]} 31. Bd2 {[%emt 0:01:28]} Bb7 {[%emt 0:01:02]} 32. e3 {[%emt 0:01:50]} Rd7 {[%emt 0:02:03]} 33. b4 {[%emt 0:01:21]} Kf6 {[%emt 0:01:21]} 34. b5 {[%emt 0:00:55]} g4 {[%emt 0:00:41]} 35. a4 {[%emt 0:00:18]} h5 {[%emt 0:00:27]} 36. a5 {[%emt 0:00:20]} Qh7 {[%emt 0:00:41]} 37. a6 {[%emt 0:00:39]} Ba8 {[%emt 0:00:02]} 38. Rc8 {[%emt 0:00:22]} Rd8 {[%emt 0:00:03]} 39. Rxd8 {[%emt 0:00:18]} Rxd8 {[%emt 0:00:05]} 40. b6 {[%emt 0:00:00]} Rh8 {[%emt 0:00:04]} 41. Qb5 {[%emt 0:01:20]} h4 {[%emt 0:00:05]} 42. Be1 {[%emt 0:00:11]} hxg3 {[%emt 0:00:09]} 43. Bxg3 {[%emt 0:00:18]} Rb8 {[%emt 0:00:03]} 44. b7 {[%emt 0:00:41]} Bxb7 {[%emt 0:00:11]} 45. axb7 {[%emt 0:00:05]} Qxb7 {[%emt 0:00:12]} 46. Qxb7 {[%emt 0:01:11]} Rxb7 {[%emt 0:00:01]} 47. Rc2 {[%emt 0:09:13]} Rb1+ {[%emt 0:01:23]} 48. Kf2 {[%emt 0:00:06]} Ke7 {[%emt 0:00:11]} 49. Ke2 {[%emt 0:01:06]} Kd7 {[%emt 0:00:19]} 50. Kf2 {[%emt 0:01:57]} Bb4 {[%emt 0:00:40]} 51. Bf1 {[%emt 0:01:02]} Be1+ {[%emt 0:00:15]} 52. Kg2 {[%emt 0:00:05]} Bxg3 {[%emt 0:00:17]} 53. hxg3 {[%emt 0:00:04]} Kd6 {[%emt 0:00:07]} 54. Be2 {[%emt 0:01:06]} Rb3 {[%emt 0:00:13]} 55. Kf2 {[%emt 0:00:06]} Rb1 {[%emt 0:00:06]} 56. Rc5 {[%emt 0:02:25]} Rb2 {[%emt 0:00:53]} 57. Rb5 {[%emt 0:01:29]} Ra2 {[%emt 0:00:14]} 58. Rb6+ {[%emt 0:01:02]} Ke7 {[%emt 0:00:07]} 59. Ra6 {[%emt 0:00:54]} Rb2 {[%emt 0:00:07]} 60. Ra7+ {[%emt 0:00:13]} Kf6 {[%emt 0:00:16]} 61. Ra1 {[%emt 0:14:56]} Rb3 {[%emt 0:00:16]} 62. Ra2 {[%emt 0:00:20]} Ke7 {[%emt 0:00:08]} 63. Bd1 {[%emt 0:00:53]} Rb1 {[%emt 0:00:18]} 64. Ke2 {[%emt 0:00:41]} Rb8 {[%emt 0:00:07]} 65. Ba4 {[%emt 0:08:00]} Rh8 {[%emt 0:00:07]} 66. Rc2 {[%emt 0:00:37]} Rh2+ {[%emt 0:00:14]} 67. Kd3 {[%emt 0:00:21]} Rh3 {[%emt 0:00:30]} 68. Rc7+ {[%emt 0:00:33]} Kf6 {[%emt 0:00:10]} 69. Bd7 {[%emt 0:00:18]} Rxg3 {[%emt 0:00:36]} 70. Rc6 {[%emt 0:00:05]} Rg1 {[%emt 0:00:03]} 71. Bxe6 {[%emt 0:00:08]} g3 {[%emt 0:00:04]} 72. Bxd5+ {[%emt 0:00:04]} Kg7 {[%emt 0:00:04]} 73. Rc2 {[%emt 0:00:35]} 1-0

[Event "EYCC 2017"]
[Site "Mamaia"]
[Date "2017.09.07"]
[Round "3"]
[White "Milikow, Elie"]
[Black "Ermachenko, Manuel"]
[Result "1-0"]
[ECO "B41"]
[WhiteElo "1977"]
[BlackElo "1660"]
[Annotator "NA RC"]
[PlyCount "59"]
[EventDate "2017.??.??"]
[EventType "swiss"]
[EventCountry "ROU"]
[SourceTitle "playchess.com"]
[Source "ChessBase"]
[SourceQuality "1"]
[TimeControl "40/5400+30:1800+30"]

1. e4 c5 2. Nf3 e6 3. d4 cxd4 4. Nxd4 a6 5. c4 Nf6 6. Nc3 Qc7 7. Be2 d6 8. Be3 Nbd7 9. O-O Be7 10. f4 b6 11. Bf3 Bb7 12. Rc1 O-O 13. Qe2 Rac8 14. b3 Nc5 15. Bd2 Rfe8 16. e5 Bxf3 17. Nxf3 Nfd7 18. exd6 Bxd6 19. Ng5 h6 20. Nge4 e5 21. Nd5 Qc6 22. f5 Nxe4 23. Qxe4 Bc5+ 24. Kh1 Nf6 25. Nxf6+ Qxf6 26. Be1 Be7 27. Bg3 Qg5 28. Rcd1 Bf6 29. Bf2 Bd8 30. Bg3 1-0

[Event "EYCC 2017"]
[Site "Mamaia"]
[Date "2017.09.07"]
[Round "3"]
[White "Nilssen, Ellen Fredericia"]
[Black "Goltseva, Ekaterina"]
[Result "0-1"]
[ECO "A13"]
[WhiteElo "1977"]
[BlackElo "2214"]
[Annotator "NA"]
[PlyCount "36"]
[EventDate "2017.??.??"]
[EventType "swiss"]
[EventCountry "ROU"]
[SourceTitle "playchess.com"]
[Source "ChessBase"]
[SourceQuality "1"]
[TimeControl "40/5400+30:1800+30"]

1. Nf3 {[%emt 0:00:00]} Nf6 {[%emt 0:00:24]} 2. c4 {[%emt 0:00:00]} e6 {[%emt 0:02:27]} 3. g3 {[%emt 0:02:43]} d5 {[%emt 0:03:28]} 4. Bg2 {[%emt 0:00:27]} dxc4 {[%emt 0:02:57]} 5. Qa4+ {[%emt 0:00:39]} Nbd7 {[%emt 0:02:33]} 6. Qxc4 {[%emt 0:03:27]} a6 {[%emt 0:03:52]} 7. d4 {[%emt 0:05:57]} b5 {[%emt 0:02:12]} 8. Qc2 {[%emt 0:00:12]} Bb7 {[%emt 0:00:25]} 9. O-O {[%emt 0:12:53]} c5 {[%emt 0:05:58]} 10. Rd1 {[%emt 0:06:44]} Rc8 {[%emt 0:02:48]} 11. Bg5 {[%emt 0:14:15]} Qb6 {[%emt 0:15:35]} 12. Rc1 {[%emt 0:06:33]} Be7 {[%emt 0:18:15]} 13. Ne5 {[%emt 0:05:07]} Bxg2 {[%emt 0:03:14]} 14. Kxg2 {[%emt 0:05:51]} O-O {[%emt 0:02:34]} 15. Nxd7 {[%emt 0:01:07]} Qb7+ {[%emt 0:00:13]} 16. Kg1 {[%emt 0:01:47]} Qxd7 {[%emt 0:05:40]} 17. dxc5 {[%emt 0:01:56]} Rxc5 {[%emt 0:02:45]} 18. Qd2 {[%emt 0:00:37]} Rd5 {[%emt 0:00:20]} 0-1

[Event "EYCC 2017"]
[Site "Mamaia"]
[Date "2017.09.07"]
[Round "3"]
[White "Avetisyan, Mariam"]
[Black "Janiashvili, Mariami"]
[Result "1-0"]
[ECO "D37"]
[WhiteElo "1976"]
[BlackElo "1875"]
[Annotator "NA"]
[PlyCount "55"]
[EventDate "2017.??.??"]
[EventType "swiss"]
[EventCountry "ROU"]
[SourceTitle "playchess.com"]
[Source "ChessBase"]
[SourceQuality "1"]
[TimeControl "40/5400+30:1800+30"]

1. d4 {[%emt 0:00:00]} d5 {[%emt 0:00:04]} 2. c4 {[%emt 0:00:00]} e6 {[%emt 0:00:04]} 3. Nc3 {[%emt 0:00:03]} Nf6 {[%emt 0:00:05]} 4. Nf3 {[%emt 0:01:48]} dxc4 {[%emt 0:00:36]} 5. g3 {[%emt 0:04:45]} Be7 {[%emt 0:02:16]} 6. Bg2 {[%emt 0:00:28]} O-O {[%emt 0:00:07]} 7. O-O {[%emt 0:04:22]} Nbd7 {[%emt 0:01:05]} 8. Qc2 {[%emt 0:11:54]} c6 {[%emt 0:09:08]} 9. a4 {[%emt 0:00:59]} Re8 {[%emt 0:03:52]} 10. Rd1 {[%emt 0:04:25]} Qa5 {[%emt 0:03:24]} 11. Bd2 {[%emt 0:04:29]} Qh5 {[%emt 0:05:31]} 12. Bf4 {[%emt 0:21:25]} Nd5 {[%emt 0:03:36]} 13. Ne4 {[%emt 0:09:27]} Nxf4 {[%emt 0:05:35]} 14. gxf4 {[%emt 0:00:03]} Qf5 {[%emt 0:00:53]} 15. e3 {[%emt 0:01:34]} b5 {[%emt 0:08:21]} 16. Ne5 {[%emt 0:02:15]} Nxe5 {[%emt 0:03:55]} 17. dxe5 {[%emt 0:00:07]} Rb8 {[%emt 0:05:32]} 18. Qe2 {[%emt 0:08:32]} Bb7 {[%emt 0:06:03]} 19. Rd7 {[%emt 0:00:56]} f6 {[%emt 0:01:47]} 20. axb5 {[%emt 0:03:42]} cxb5 {[%emt 0:00:23]} 21. Ng3 {[%emt 0:00:32]} Qg6 {[%emt 0:01:35]} 22. Bxb7 {[%emt 0:00:12]} fxe5 {[%emt 0:01:28]} 23. fxe5 {[%emt 0:00:07]} Bc5 {[%emt 0:00:09]} 24. Be4 {[%emt 0:02:59]} Qg5 {[%emt 0:01:55]} 25. Qh5 {[%emt 0:00:28]} Qxh5 {[%emt 0:00:52]} 26. Nxh5 {[%emt 0:00:04]} Re7 {[%emt 0:00:06]} 27. Rxe7 {[%emt 0:00:31]} Bxe7 {[%emt 0:00:05]} 28. Rxa7 {[%emt 0:00:04]} 1-0